Cogmind - Beta 17 @@@ ROGUE MODE // 2026.06.26 @ 15:48:24 Player: mintimati Result: Destroyed by Y-45 Defender with Heavy Assault Rifle Performance ------------- Evolutions (2) 1000 Regions Visited (4) 800 Robots Destroyed (25) 125 Value Destroyed (482) 482 Prototype IDs (3) 60 Alien Tech Used (0) 0 Bonus (0) 0 TOTAL SCORE: 2467 Bonus ------- None Cogmind --------- Core Integrity 0/550 Matter 108/300 Energy 99/100 System Corruption 1% Temperature Cool (9) Movement Core (100) Ox1 Location -8/Storage Parts ------- > --- POWER (1) -------- (None) > --- PROPULSION (4) --- (None) > --- UTILITY (4) ------ Small Storage Unit Gravity Neutralizer > --- WEAPON (2) ------- (None) > --- INVENTORY (8) ---- Cooled Ion Engine Cesium-ion Thruster Improved Terrain Scanner Target Analyzer Shock Bomb Launcher Advanced EMP Blaster Peak State ------------ > --- POWER ------------ Improved Ion Engine > --- PROPULSION ------- Flight Unit Cesium-ion Thruster Cesium-ion Thruster > --- UTILITY ---------- Small Storage Unit Gravity Neutralizer Improved Terrain Scanner Improved Targeting Computer > --- WEAPON ----------- Enhanced Autogun Shock Bomb Launcher > --- INVENTORY -------- Compact Wheel Seismic Detector [Rating: 28] Favorites ----------- Power Ion Engine Engine Ion Engine Propulsion Light Treads Treads Light Treads Wheel Compact Wheel Flight Unit Cesium-ion Thruster Utility Small Storage Unit Device Seismic Detector Storage Small Storage Unit Processor Improved Targeting Computer Weapon Light Assault Rifle Energy Gun EM Pulse Gun Ballistic Gun Light Assault Rifle Launcher Shock Bomb Launcher Build | -11 -10 -9 -8 -8 ------- Run | Yrd Mat Mat Mat Sto Slots Evolved 4 | . . 2 2 . Power . | . . . . . Propulsion 2 | . . 1 1 . Utility 2 | . . 1 1 . Weapon . | . . . . . Parts Attached 28 | 8 . 7 9 4 Power 3 | 1 . 1 1 . Engine 3 | 1 . 1 1 . Core . | . . . . . Reactor . | . . . . . Propulsion 6 | 2 . . 3 1 Treads 2 | 2 . . . . Leg . | . . . . . Wheel 1 | . . . . 1 Hover . | . . . . . Flight 3 | . . . 3 . Utility 7 | 3 . 2 1 1 Device 4 | 2 . 1 . 1 Storage 1 | 1 . . . . Processor 2 | . . 1 1 . Hackware . | . . . . . Protection . | . . . . . Artifact . | . . . . . Weapon 12 | 2 . 4 4 2 Energy Gun 4 | 1 . 1 2 . Energy Cannon . | . . . . . Ballistic Gun 5 | 1 . 3 1 . Ballistic Cannon . | . . . . . Launcher 3 | . . . 1 2 Special Weapon . | . . . . . Impact Weapon . | . . . . . Slashing Weapon . | . . . . . Piercing Weapon . | . . . . . Special Melee Weapon . | . . . . . Unidentified Prototypes 3 | . . . 1 2 Corrupted Parts 1 | . . 1 . . System Corruption 2 | . . 2 . . Parts Lost 10 | . . 2 . 8 Power 1 | . . . . 1 Propulsion 4 | . . 1 . 3 Utility 2 | . . . . 2 Weapon 3 | . . 1 . 2 Highest Loss Streak 7 | . . 1 . 7 To Critical Strikes . | . . . . . Average Backups 4 | 3 5 6 4 3 Power . | . . . . . Propulsion 1 | 1 2 1 1 1 Utility 1 | . 2 1 1 1 Weapon 1 | . 1 2 1 . Tool/Special . | . . . . . Unused Backups 8 | . . 3 3 2 Power 1 | . . . . 1 Propulsion 3 | . . 3 . . Utility 3 | . . . 2 1 Weapon 1 | . . . 1 . Tool/Special . | . . . . . Average Slot Usage (%) 81 | . 100 83 70 73 Engine 10 | . 14 11 8 7 Treads 12 | . 28 18 2 . Flight 8 | . . . 20 18 Device 12 | . 14 12 9 16 Storage 10 | . 14 11 9 9 Processor 8 | . . 9 15 7 Energy Gun 5 | . 14 7 . . Ballistic Gun 10 | . 14 13 5 6 Launcher 1 | . . . . 7 Peak Build Rating 28 | 9 9 12 23 28 Average Rating 12 | 6 9 9 14 22 On Entrance 8 | . 9 9 9 14 Avg Prop Armor Cover (%) . | . . . . . Naked Turns . | . . . . . Heaviest Build 25 | 14 14 17 16 25 Greatest Support 40 | 40 40 40 20 28 Greatest Overweight (x) 5 | . . 5 5 1 Average Overweight (x) . | . . . . . Largest Inventory Capacity 8 | 8 8 8 8 8 Average Capacity 7 | 7 8 8 8 8 Most Carried 8 | 5 5 8 8 8 Average Carried 4 | 3 5 6 4 3 Final Capacity 8 | 8 8 8 8 8 Final Carried 6 | 5 5 6 4 6 Class Distribution -------------------- 73% | Mutant 26% | Sprinter Dominant Class ---------------- Mutant | -10/Materials Mutant | -9/Materials Sprinter | -8/Materials Sprinter | -8/Storage Resources | -11 -10 -9 -8 -8 ----------- Run | Yrd Mat Mat Mat Sto Matter Collected 485 | 286 . 93 53 53 Remotely 76 | 76 . . . . Salvage Created 865 | 130 . 378 84 273 Parts 56 | 6 . 27 4 19 Haulers Intercepted . | . . . . . Recyclers Shooed 3 | . . 1 1 1 Parts Field Recycled . | . . . . . Retrieved Matter . | . . . . . Parts Self-Destructed . | . . . . . Prevented . | . . . . . Parts Restored . | . . . . . Kills | -11 -10 -9 -8 -8 ------- Run | Yrd Mat Mat Mat Sto Combat Hostiles Destroyed 16 | . . 10 2 4 Guns 10 | . . 8 2 . AOE 6 | . . 2 . 4 Classes Destroyed 7 | 2 . 4 . 1 Builder 1 | . . . . 1 Tunneler 1 | 1 . . . . Recycler 3 | 1 . 1 1 . Watcher 4 | . . 3 . 1 Swarmer 10 | . . 8 2 . Grunt 1 | . . 1 . . Sentry 5 | . . 1 . 4 Best Kill Streak 6 | 2 . 5 2 6 Combat Bots Only 5 | . . 5 2 4 Max Kills in Single Turn 3 | 1 . 3 1 3 Gunslinging 1 | . . 1 . . Exploded 3 | . . 2 . 3 Melee . | . . . . . Uniques/NPCs Destroyed . | . . . . . Combat | -11 -10 -9 -8 -8 -------- Run | Yrd Mat Mat Mat Sto Hostile Shots Fired 174 | . . 46 11 117 Missed 56 | . . 10 5 41 Hits 118 | . . 36 6 76 Projectile 118 | . . 36 6 76 Critical Strikes 4 | . . . . 4 Damage Taken 1608 | . . 373 100 1135 Core 615 | . . 55 56 504 Absorbed by Shields . | . . . . . Core Remaining (%) 95 | 100 100 86 . . Volleys Fired 55 | 6 6 27 13 3 Largest 2 | 2 2 2 2 2 Hottest 79 | 60 60 79 61 72 Shots Fired 100 | 12 12 54 16 6 Gun 93 | 12 12 54 13 2 Cannon . | . . . . . Launcher 7 | . . . 3 4 Special . | . . . . . Kinetic 65 | 6 6 38 13 2 Thermal 4 | . . 4 . . Explosive . | . . . . . Electromagnetic 31 | 6 6 12 3 4 Robot Hit Streak 11 | 8 2 11 2 7 Robot Miss Streak 5 | 1 4 4 5 . Penetration Max . | . . . . . Secondary Targets 1 | . . 1 . . Max Gunslinging Chain 1 | . . 1 . . Shots Hit Robots 57 | 9 4 33 6 5 Core Hits 36 | 3 . 22 3 8 Critical Kills . | . . . . . Critical Parts Destroyed . | . . . . . Critical Strikes 1 | . . 1 . . Burn 1 | . . 1 . . Melee Attacks . | . . . . . Impact . | . . . . . Slashing . | . . . . . Piercing . | . . . . . Sneak Attacks . | . . . . . Combat Hostiles . | . . . . . Follow-up Attacks . | . . . . . Damage Inflicted 1091 | 152 51 445 109 334 Guns 603 | 106 51 338 88 20 Cannons . | . . . . . Explosions 482 | 46 . 101 21 314 Melee . | . . . . . Ramming 6 | . . 6 . . Kinetic 353 | 24 27 194 88 20 Thermal 291 | 46 . 116 . 129 Explosive . | . . . . . Electromagnetic 441 | 82 24 129 21 185 Impact . | . . . . . Slashing . | . . . . . Piercing . | . . . . . Highest Corruption 2 | . . 2 . 1 Average Corruption 1 | . . 2 . 1 Corruption Purged . | . . . . . Corruption Blocked . | . . . . . Effects 1 | . . 1 . . Message Errors 1 | . . 1 . . Overload Shots . | . . . . . Overflow Damage 17 | 16 . 1 . . Projectiles . | . . . . . Explosions 17 | 16 . 1 . . Melee . | . . . . . Knockbacks . | . . . . . Impact . | . . . . . Kinetic . | . . . . . Secondary . | . . . . . Self-Inflicted Damage 63 | . . 37 1 25 Shots 4 | . . 1 1 2 Rammed 5 | . 1 4 . . Targets Rammed 5 | . 1 4 . . Kicked . | . . . . . Crushed . | . . . . . Highest Temperature 43 | 40 20 43 32 28 Average Temperature 14 | 17 14 16 10 10 Received Heat Transfer 477 | . . 63 . 414 Siege Activations . | . . . . . Martial Activations . | . . . . . Shielding Activations . | . . . . . Robots Disrupted . | . . . . . Combat Hostiles . | . . . . . Robots Corrupted . | . . . . . Combat Hostiles . | . . . . . Parts Fried . | . . . . . Impact Corruptions . | . . . . . Robots Melted . | . . . . . Combat Hostiles . | . . . . . Parts Melted . | . . . . . Heat Transferred 261 | 50 . 111 . 100 Parts Sabotaged . | . . . . . Parts Stolen . | . . . . . Parts Stripped . | . . . . . Power Chain Reactions 3 | 1 . 1 . 1 Alert | -11 -10 -9 -8 -8 ------- Run | Yrd Mat Mat Mat Sto Maximum Alert Level 1 | . . 1 . . Low Security (%) 99 | 100 100 98 100 100 Level 1 . | . . 1 . . Level 2 . | . . . . . Level 3 . | . . . . . Level 4 . | . . . . . Level 5 . | . . . . . High Security . | . . . . . Max Security . | . . . . . Peak Influence 207 | 5 7 207 175 123 Initial 79 | . . . 56 79 Average 39 | . . 96 15 27 Influence Increases 855 | 10 7 360 226 252 Destroy 0b10 Robot/C 320 | . . 200 40 80 Destroy 0b10 Robot/NC 45 | 10 . 20 5 10 Destroy Leader 98 | . . 46 10 42 Successful Hack 39 | . 7 2 6 24 Disable Machine 30 | . . 15 . 15 Destroy Structure 8 | . . 2 . 6 Partial Spotted 45 | . . . 30 15 Lose Combat Pursuer 270 | . . 75 135 60 Influence Decreases 807 | 10 7 226 170 394 Entered New Map 189 | . . . 78 111 Time Decay 437 | 10 7 206 92 122 Lost Part 97 | . . 20 . 77 Purge Threat 84 | . . . . 84 Squads Dispatched 4 | . 1 2 1 . Investigation . | . . . . . Extermination . | . . . . . Reinforcement 4 | . 1 2 1 . Assault . | . . . . . Garrison . | . . . . . Intercept . | . . . . . Searches Triggered . | . . . . . Construction Impeded . | . . . . . Haulers Reinforced . | . . . . . Active Scanning Responses . | . . . . . Cargo Convoy Interrupts . | . . . . . Stealth | -11 -10 -9 -8 -8 --------- Run | Yrd Mat Mat Mat Sto Distress Signals 5 | . . 2 2 1 Communications Jammed . | . . . . . Distress Signals . | . . . . . Times Spotted 54 | . 4 23 16 11 Peak Tracking Total 17 | . 1 6 17 7 Tactical Retreats 6 | . . 2 2 2 Traps | -11 -10 -9 -8 -8 ------- Run | Yrd Mat Mat Mat Sto Traps Triggered . | . . . . . Indirectly . | . . . . . Trap Hack Attempts . | . . . . . Triggered . | . . . . . Disarmed . | . . . . . Reprogrammed . | . . . . . Reused . | . . . . . Traps Extracted . | . . . . . Installed . | . . . . . Triggered . | . . . . . Machines | -11 -10 -9 -8 -8 ---------- Run | Yrd Mat Mat Mat Sto Machines Disabled 2 | . . 1 . 1 Max in Single Turn 1 | . . 1 . 1 Machines Repaired . | . . . . . Machines Dismantled . | . . . . . Machines Sabotaged . | . . . . . Overloaded Fab Kills . | . . . . . Hacking | -11 -10 -9 -8 -8 --------- Run | Yrd Mat Mat Mat Sto Machines Accessed 14 | . 1 2 3 8 Terminals 11 | . 1 1 3 6 Fabricators . | . . . . . Repair Stations 1 | . . . . 1 Recycling Units . | . . . . . Scanalyzers 1 | . . 1 . . Garrison Access 1 | . . . . 1 Total Hacks 20 | . 1 4 4 11 Successful 11 | . 1 2 2 6 Failed 8 | . . 1 2 5 Catastrophic 2 | . . . . 2 Database Lockouts 1 | . . 1 . . Manual 6 | . . 3 2 1 Terminals 15 | . 1 1 4 9 Fabricators . | . . . . . Repair Stations 1 | . . . . 1 Recycling Units . | . . . . . Scanalyzers 3 | . . 3 . . Garrison Access 1 | . . . . 1 Terminal Hacks 10 | . 1 1 2 6 Record 1 | . . 1 . . Open Door 3 | . . . . 3 Alert Level 1 | . . . 1 . Unreport Threat 1 | . . . . 1 Transport Status 1 | . . . . 1 Reinforcement Status 1 | . . . . 1 Recall Investigation 1 | . 1 . . . Zone Layout 1 | . . . 1 . Fabricator Hacks . | . . . . . Repair Station Hacks . | . . . . . Recycling Unit Hacks . | . . . . . Scanalyzer 1 | . . 1 . . Retrieve Study 1 | . . 1 . . Garrison Access Hacks . | . . . . . Unauthorized Hacks . | . . . . . Terminals . | . . . . . Fabricators . | . . . . . Repair Stations . | . . . . . Recycling Units . | . . . . . Scanalyzers . | . . . . . Garrison Access . | . . . . . Data Cores Recovered . | . . . . . Used . | . . . . . Hacking Detections 6 | . . 1 2 3 Full Trace Events . | . . . . . Feedback Events . | . . . . . Feedback Blocked . | . . . . . Robot Schematics Acquired . | . . . . . Robots Built . | . . . . . Authchips . | . . . . . Time . | . . . . . Total Robot Build Rating . | . . . . . Part Schematics Acquired . | . . . . . Parts Built . | . . . . . Authchips . | . . . . . Time . | . . . . . Total Part Build Rating . | . . . . . Part Studies Acquired 1 | . . 1 . . Parts Repaired . | . . . . . Time . | . . . . . Parts Recycled . | . . . . . Recycled Matter . | . . . . . Retrieved Matter . | . . . . . Retrieved Components . | . . . . . Parts Scanalyzed . | . . . . . Part Schematics Acquired . | . . . . . Parts Damaged . | . . . . . Bothacking | -11 -10 -9 -8 -8 ------------ Run | Yrd Mat Mat Mat Sto Used RIF Installer . | . . . . . Robots Hacked . | . . . . . Non-combat . | . . . . . Combat . | . . . . . Robot Hacks Applied . | . . . . . Relay Couplers Released . | . . . . . Fabnet Peak Effective % . | . . . . . Robots Rewired . | . . . . . Allies Hacked . | . . . . . Hacks Repelled . | . . . . . Allies | -11 -10 -9 -8 -8 -------- Run | Yrd Mat Mat Mat Sto Total Allies . | . . . . . Largest Group . | . . . . . Highest-Rated Group . | . . . . . Highest-Rated Ally . | . . . . . Total Orders . | . . . . . Ally Attacks . | . . . . . Total Damage . | . . . . . Kills . | . . . . . Allies Corrupted . | . . . . . Allies Melted . | . . . . . Intel | -11 -10 -9 -8 -8 ------- Run | Yrd Mat Mat Mat Sto Active Infowar (turns) 1440 | 107 300 568 350 115 Terrain 492 | 107 300 61 . 24 Seismic 1033 | . . 568 350 115 Robot Analysis Total . | . . . . . Derelict Logs Recovered . | . . . . . Drone Launches . | . . . . . Drone Recoveries . | . . . . . Exploration | -11 -10 -9 -8 -8 ------------- Run | Yrd Mat Mat Mat Sto Turns Passed 1801 | 221 300 568 350 362 Spaces Moved 1191 | 109 175 242 284 381 Core 92 | 47 . 11 2 32 Treads 509 | 62 175 231 41 . Legs . | . . . . . Wheels 10 | . . . . 10 Hover . | . . . . . Flight 580 | . . . 241 339 Fastest Speed 30 | 50 160 160 30 30 Average Speed 95 | 112 160 163 60 44 Slowest Speed 300 | 160 160 300 300 114 Overloaded Moves . | . . . . . Propulsion Burnouts . | . . . . . Robots Hopped 1 | . . . 1 . Potential Cave-ins . | . . . . . Cave-ins Triggered . | . . . . . Exploration Rate (%) 26 | 4 33 23 30 43 Regions Visited 4 Branch Regions 1 Pre-discovered Areas . | . . . . . Known Exits Taken . | . . . . . Unknown Exits Taken 4 | 1 1 1 1 . Scrap Searched . | . . . . . Spaces Dug . | . . . . . Terrain Destroyed 6 | . . 1 . 5 Melee . | . . . . . Projectile . | . . . . . AOE 6 | . . 1 . 5 Terrain Rammed . | . . . . . Walls Destroyed . | . . . . . Machines Disabled . | . . . . . Actions | -11 -10 -9 -8 -8 --------- Run | Yrd Mat Mat Mat Sto Total 1788 | 197 184 372 464 571 Wait 416 | 62 3 70 118 163 Move 1186 | 108 174 242 281 381 Hop 1 | . . . 1 . Pick Up 44 | 12 . 12 14 6 Fast Attach . | . . . . . Attach 38 | 8 . 9 11 10 Detach 22 | 1 . 3 11 7 Swap . | . . . . . Drop 22 | . . 6 15 1 Fire 55 | 6 6 27 13 3 Melee . | . . . . . Ram . | . . . . . Kick . | . . . . . Crush 4 | . 1 3 . . Escape Stasis . | . . . . . Rewire . | . . . . . Trap . | . . . . . Miscellaneous . | . . . . . Route ------- -11/Scrapyard -10/Materials -9/Materials -8/Materials -8/Storage History --------- Turn | Location | Event 29 | -11/Scrapyard | Discovered new exit (range 16) 222 | -11/Scrapyard | Entered Materials 318 | -10/Materials | Build established: Mutant 471 | -10/Materials | Discovered new exit (range 10) 522 | -10/Materials | Entered another Materials area 522 | -9/Materials | Evolved 2 slots: Propulsion x1, Utility x1 925 | -9/Materials | Discovered new exit (range 14) 1060 | -9/Materials | Central database locked down 1090 | -9/Materials | Entered another Materials area 1090 | -8/Materials | Evolved 2 slots: Propulsion x1, Utility x1 1439 | -8/Materials | Discovered new exit (range 4) 1440 | -8/Materials | Entered Storage 1766 | -8/Storage | Core integrity fell below 50% 1775 | -8/Storage | Core integrity fell below 20% 1785 | -8/Storage | Lost 7 parts (1p2n2u2w) 1802 | -8/Storage | Destroyed by Y-45 Defender with Heavy Assault Rifle Last Messages --------------- Imp. Ion Engine. 01745_ K-01 Serf collects debris. 01748_ Com. Wheel destroyed. 01748_ Imp. Ion Engine destroyed. 01749_ K-01 Serf collects debris. 01751_ Enh. Autogun destroyed. 01753_ K-01 Serf collects debris. 01753_ Adv. EMP Blaster destroyed. 01754_ Seismic Detector destroyed. 01755_ K-01 Serf collects debris. 01772_ U-05 Engineer lays Concrete. 01774_ R-06 Scavenger collects Hvy. Assault Rifle. 01775_ U-05 Engineer builds a Door. 01777_ R-06 Scavenger collects Lgt. Treads. 01779_ Acquired 53 matter. 01779_ U-05 Engineer builds a Wall. 01780_ R-06 Scavenger collects Imp. Ion Engine. 01783_ R-06 Scavenger collects Heat Sink. 01783_ U-05 Engineer builds a Wall. Map ----- +----------------------------------------------------+ | | | | | | | | | | | | | | | | | | | | | | | | | | | | | | | | | ???????????######??????????????????????????????? | | ?????????? ??????????????????????????????? | | ?????#??""""" #?????????????????????????????? | | ?????# """"" #?????????????????????????????? | | ##????? """"" #?????????????????????????????? | | ##?????? #?????????????????????????????? | | #????????? #?????????????????????????????? | | #??????????? #????##+###???????????????????? | | +##############+####### #####T#"????????????? | | @ "????????????? | | a "????????????? | | #####/##+######### #### #######"????????????? | | # ########+##### ##???????????????????? | | # ## # ######???????????????? | | # """ """ ## + + **#???????????????? | | + """ """ ## # # *#???????????????? | | # """ """ ## # # **#???????????????? | | # """ """ ## # #T####???????????????? | | # """ """ ## # ###???????????#####??? | | # ## # #?????????????#"""#??? | | ##" "################### #?????????#####"Y"###? | | ##"R"#????????????????##Y ##???###### #? | | ##"""#???????????###### k ##### # """ """ #? | | ######???????????# # """ """ #? | | #????????????????# # """ """ #? | | #????????????????# ### ##### # #? | | ?????????????????# #?######???## ##] #? | | ?????????????###?# #???????????# ## #? | | ????????###### ### #???????????# ####/#######? | | ????????# ]] ![##**##??????????# #???? | | ????????# %[!!= #??????????# #???? | | ????????#]]]] [!/% #?????????######+####+#???? | | ????????####### # / ""??????# #??? | | ??????????????#"# %|# """?????# #??? | +----------------------------------------------------+ Best States ------------- Heat Dissipation 31 Energy Generation 12 Energy Capacity 265 Matter Stores 300 Matter Capacity 300 Sight Range 16 Terrain Scan Range 16 Terrain Scan Density 10 Additional Mass Support 12 Evasion (%) 64 Targeting Accuracy 6 Recoil Reduction 2 Item Schematics ----------------- None Robot Schematics ------------------ None Fabricated ------------ Nothing Repaired ---------- Nothing Studied --------- Lgt. Assault Rifle | -9/Materials | Hacked Alien Tech Used ----------------- None Achievements -------------- Item+ Challenges ------------ None Game ------ Seed TractorPitchforkCalibrator Manual? 0 Play Time 00:22:18 Cumulative 10.9 hours Start 2026.06.26 @ 15:26:47 End 2026.06.26 @ 15:48:24 Sessions 1 Manual Loads 0 Difficulty Rogue Special Mode None Game No. 21 Rogue 21 Adventurer 0 Explorer 0 Win Type - Total 0 Types 0/0/0/0/0/0/0/0/0/0 Lore% 1 Gallery% 14 Achievement% 11 Wizard Run 0 Options --------- Layout 1 ASCII 0 Keyboard 1 Movement Numpad Keybinds 0 Fullscreen 1 Font 24/Smallcaps Map View 50x35 Zoom Use 0% Tactical HUD 1 Map Filters NONE Filters NONE Steam 1 RUN: aa7e037b-8ca4-40e7-a40c-fb8f2a7033c0